bitfinex-derivatives/quotes_ETHF0:USTF0_20250926
["timestamp","ask_amount","ask_price","bid_price","bid_amount"]
[1758894753716,3.2078,3979.0,3977.8,0.45218]
[1758894753908,11.29055,3982.8,3979.5,0.45199]
[1758894753909,10.74793327,3982.8,3979.5,0.45199]
[1758894754107,10.74793327,3982.8,3978.7,0.2463]
[1758894754108,0.45171,3982.0,3980.9,0.2463]
[1758894754310,0.45166,3982.5,3980.9,0.2463]
[1758894754515,0.45174,3981.8,3980.9,0.2463]
[1758894754815,8.26,3981.8,3980.9,0.2463]
[1758894755014,8.71174,3981.8,3980.9,0.2463]
[1758894755208,3.2078,3981.0,3980.9,0.2463]
[1758894755409,48.104,3981.0,3979.8,3.4541]
[1758894755607,3.2078,3980.1,3979.8,0.16784203]
[1758894755805,44.0078,3980.0,3978.7,0.07845797]
[1758894756016,3.2078,3979.4,3978.7,0.07845797]
[1758894756210,3.2078,3978.8,3977.2,3.2078]
[1758894756418,3.2078,3978.8,3975.1,11.31277]
[1758894756419,3.2078,3977.4,3975.7,3.2078]
[1758894756713,3.2078,3975.9,3974.6,0.2463]
[1758894756918,40.8,3975.8,3975.3,3.2078]
[1758894757111,39.299,3977.3,3976.2,0.45238]
[1758894757112,3.2078,3976.9,3976.2,0.45238]
[1758894757306,3.2078,3977.6,3976.0,3.2078]
[1758894757607,9.06,3977.6,3976.6,3.2078]
[1758894757806,0.39,3977.7,3976.9,3.2078]
[1758894758013,3.2078,3977.2,3975.9,3.2078]
[1758894758217,3.2078,3976.6,3975.9,3.2078]
[1758894758415,0.39,3976.5,3975.5,3.2078]
[1758894758606,3.2078,3975.8,3975.3,3.2078]
[1758894758810,7.78234,3976.5,3975.4,3.2078]
[1758894758811,0.389,3976.4,3975.4,3.2078]
[1758894759009,0.389,3976.4,3975.3,3.2078]
[1758894759010,3.2078,3975.7,3975.3,3.2078]
[1758894759215,41.19,3975.6,3975.4,3.2078]
[1758894759418,0.39,3975.5,3975.3,3.2078]
[1758894759620,3.66026,3975.4,3975.3,3.2078]
[1758894759919,7.9178,3975.4,3973.8,3.2078]
[1758894760222,40.8,3984.4,3977.2,12.43685]
[1758894760422,3.2078,3983.4,3981.7,11.29357]
[1758894760722,0.026,3983.4,3983.1,0.45158]
[1758894760911,0.026,3983.4,3983.2,0.90396387]
[1758894761110,40.8,3984.2,3983.3,4.11176387]
[1758894761311,40.8,3984.2,3983.9,3.2078]
[1758894761609,1.0,3985.0,3984.1,3.2078]
[1758894761610,1.45,3985.0,3984.1,3.2078]
[1758894761818,1.45,3985.0,3984.9,3.2078]
[1758894762115,1.45,3985.0,3984.4,3.2078]
[1758894762116,45.17,3985.0,3984.4,3.2078]
[1758894762305,45.17,3985.0,3983.8,3.2078]
[1758894762306,0.45,3984.9,3983.8,3.2078]
[1758894762508,6.1378,3984.9,3983.6,3.2078]
[1758894762716,0.46,3984.9,3984.0,3.65929]
[1758894762914,0.451,3984.8,3984.0,3.2078]
[1758894763117,4.44,3984.8,3984.2,3.2078]
[1758894763316,0.45,3984.7,3982.9,3.2078]
[1758894763517,4.13,3984.7,3983.9,3.2078]
[1758894763822,1.0,3985.0,3984.0,3.2078]
[1758894764114,1.0,3985.0,3984.4,3.2078]
[1758894764315,0.453,3984.9,3984.4,3.2078]
[1758894764521,9.483,3984.9,3984.0,3.2078]
[1758894764711,3.2078,3984.6,3983.6,3.2078]
[1758894764917,0.453,3984.5,3983.6,3.2078]
[1758894765113,0.99,3984.5,3984.1,3.2078]
[1758894765319,0.453,3984.7,3984.2,0.45146]
[1758894765517,3.2078,3984.5,3983.4,3.2078]
[1758894765722,3.2078,3984.5,3981.0,1.25181239]
[1758894765723,40.8,3983.5,3982.3,3.2078]
[1758894765920,3.2078,3982.5,3981.2,3.2078]
[1758894766220,11.29585,3981.1,3979.3,3.2078]
[1758894766420,11.29585,3981.1,3978.1,3.2078]
[1758894766421,3.2078,3979.7,3978.1,3.2078]
[1758894766613,11.29289,3982.1,3979.0,0.45206]
[1758894766614,0.454,3979.6,3979.0,0.45206]
[1758894766821,41.254,3979.5,3979.2,0.45203]
[1758894767120,40.8,3979.5,3979.2,0.45203]
[1758894767321,40.8,3979.5,3977.9,11.30479]
[1758894767322,40.8,3979.5,3979.4,0.45201]
[1758894767516,39.23,3980.1,3979.1,3.2078]
[1758894767723,0.453,3980.0,3979.3,0.45202]
[1758894767924,0.453,3980.0,3978.5,3.2078]
[1758894767925,3.2078,3979.5,3978.5,3.2078]
[1758894768124,3.2078,3979.5,3978.6,0.90473197]
[1758894768431,3.2078,3979.5,3978.7,0.90473197]
[1758894768727,40.8,3979.9,3979.7,0.45196]
[1758894768929,40.8,3979.9,3978.4,11.30297]
[1758894768930,0.45222,3977.5,3976.1,1.67959877]
[1758894769121,3.2078,3976.5,3976.2,0.9046038]
[1758894769321,13.4078,3976.5,3974.3,3.2078]
[1758894769521,40.8,3975.2,3972.5,0.454]
[1758894769926,40.8,3975.2,3974.7,0.45253]
[1758894770233,40.8,3975.2,3974.9,0.4525]
[1758894770427,3.2078,3976.1,3975.1,0.45248]
[1758894770627,3.2078,3976.1,3973.6,11.31643]
[1758894770628,0.454,3976.0,3975.2,3.2078]
[1758894770824,40.8,3975.9,3974.3,3.2078]
[1758894771033,40.8,3975.9,3974.9,0.45251]
[1758894771230,39.221,3977.4,3975.6,3.2078]
[1758894771427,0.90524,3977.3,3976.0,3.2078]
[1758894771622,0.453,3977.2,3976.0,3.2078]
[1758894771822,3.2078,3977.2,3975.6,3.2078]
[1758894772019,0.45233,3976.6,3975.6,3.2078]
[1758894772332,3.2078,3976.8,3976.1,3.66017]
[1758894772530,0.453,3976.7,3976.3,0.45235]
[1758894772722,39.221,3977.4,3975.0,12.44383]
[1758894772723,3.2078,3976.4,3975.0,3.2078]
[1758894772927,3.2078,3976.4,3975.1,3.2078]
[1758894772928,0.453,3976.3,3975.1,3.2078]
[1758894773225,0.45244,3975.6,3975.1,3.2078]
[1758894773427,0.453,3975.5,3974.4,3.66036]
[1758894773633,3.2078,3975.6,3974.4,3.2078]
[1758894773828,3.2078,3975.2,3974.4,3.2078]
[1758894774028,0.452,3975.1,3974.4,3.2078]
[1758894774333,3.2078,3974.5,3973.8,3.2078]
[1758894774527,0.452,3974.4,3973.8,3.2078]
[1758894774829,0.451,3974.3,3973.8,3.2078]
[1758894775031,0.451,3974.3,3973.4,3.2078]
[1758894775332,0.45262,3974.0,3973.4,3.2078]
[1758894775529,0.45267,3973.6,3973.4,3.2078]
[1758894775725,0.45,3973.5,3973.0,3.2078]
[1758894776027,0.45,3973.4,3973.0,3.2078]
[1758894776229,0.45,3973.3,3973.1,0.45272]
[1758894776433,3.2078,3974.1,3973.0,3.2078]
[1758894776622,3.2078,3974.1,3972.6,3.2078]
[1758894776623,0.45273,3973.1,3972.6,3.2078]
[1758894776839,3.2078,3973.5,3972.6,3.2078]
[1758894776840,0.90274,3973.0,3972.6,3.2078]
[1758894777024,3.2078,3973.5,3972.2,3.2078]
[1758894777230,3.2078,3973.1,3972.2,3.2078]
[1758894777430,0.449,3973.0,3972.6,3.66056]
[1758894777628,0.449,3972.9,3972.6,3.2078]
[1758894777830,0.449,3972.8,3972.2,3.2078]
[1758894778031,0.449,3972.7,3972.2,3.2078]
[1758894778232,39.226,3975.5,3972.6,3.2078]
[1758894778432,0.45253,3974.8,3974.0,3.2078]
[1758894778632,0.45257,3974.5,3974.0,3.2078]
[1758894778836,0.45252,3974.8,3973.6,3.2078]
[1758894779036,0.448,3974.7,3973.6,3.66045]
[1758894779231,0.45251,3975.0,3974.0,3.2078]
[1758894779440,40.8,3975.4,3974.5,3.66035]
[1758894779633,0.447,3975.3,3974.5,3.2078]
[1758894779838,0.45248,3975.1,3974.5,3.2078]
[1758894780138,0.447,3975.0,3974.1,3.2078]
[1758894780435,3.2078,3974.3,3972.9,3.2078]
[1758894780630,0.45271,3973.1,3972.9,3.2078]
[1758894780831,3.2078,3973.2,3972.3,3.2078]
[1758894781030,3.2078,3973.2,3972.4,0.45279]
[1758894781227,39.241,3973.8,3972.8,3.2078]
[1758894781432,39.241,3973.8,3973.6,3.2078]
[1758894781635,3.2078,3974.8,3973.6,3.2078]
[1758894781840,0.45256,3974.5,3973.6,3.2078]
[1758894782135,3.2078,3974.3,3972.7,3.2078]
[1758894782328,0.45264,3973.8,3972.7,3.66055]
[1758894782532,3.2078,3973.5,3972.3,3.2078]
[1758894782735,12.4446,3974.8,3973.1,3.6605]
[1758894782736,3.2078,3974.8,3973.1,3.6605]
[1758894783037,3.2078,3974.3,3973.1,3.2078]
[1758894783432,0.444,3974.2,3973.8,3.2078]
[1758894783631,0.45261,3974.1,3973.4,3.2078]
[1758894783941,3.2078,3974.8,3973.9,3.2078]
[1758894784136,11.30643,3977.2,3974.5,0.45255]
[1758894784137,3.2078,3975.3,3974.5,0.45255]
[1758894784343,3.2078,3975.9,3975.0,0.45249]
[1758894784536,0.443,3975.8,3975.2,0.45246]
[1758894784742,3.2078,3976.3,3975.4,3.2078]
[1758894784937,0.45238,3976.0,3975.4,3.2078]
[1758894785244,3.2078,3977.3,3975.7,3.2078]
[1758894785540,3.2078,3977.3,3975.8,3.2078]
[1758894785847,0.45231,3976.7,3975.8,3.2078]
[1758894786036,0.442,3976.6,3975.8,3.2078]
[1758894786236,0.45235,3976.3,3974.9,3.6603]
[1758894786538,3.2078,3976.4,3975.5,3.2078]
[1758894786539,0.89337,3976.2,3975.5,3.2078]
[1758894786732,0.441,3976.2,3975.5,3.2078]
[1758894786931,0.441,3976.1,3975.1,3.2078]
[1758894787139,3.2078,3976.5,3975.7,3.2078]
[1758894787339,3.2078,3976.5,3975.6,3.2078]
[1758894787542,39.245,3976.9,3976.0,3.2078]
[1758894787543,0.44,3976.4,3976.0,3.2078]
[1758894787741,3.2078,3977.3,3976.0,3.2078]
[1758894787934,3.2078,3977.3,3976.6,0.45231]
[1758894788135,0.44,3977.6,3977.1,3.2078]
[1758894788336,0.44,3977.6,3976.7,5.0]
[1758894788337,3.2078,3977.6,3976.7,3.2078]
[1758894788536,11.30292,3978.4,3976.0,3.2078]
[1758894788537,3.2078,3977.2,3976.0,3.2078]
[1758894788742,0.4523,3976.8,3975.6,3.2078]
[1758894788940,0.439,3976.7,3975.6,3.2078]
[1758894789142,0.45234,3976.4,3975.6,3.2078]
[1758894789332,3.2078,3977.2,3976.0,3.2078]
[1758894789538,0.438,3977.5,3977.0,3.2078]
[1758894789738,0.438,3977.5,3977.1,3.2078]
[1758894789939,3.2078,3978.3,3977.1,3.2078]
[1758894790345,0.437,3978.2,3977.6,0.45219]
[1758894790638,0.437,3978.1,3977.1,3.2078]
[1758894791345,39.244,3978.6,3977.5,3.2078]
[1758894791346,0.436,3978.0,3977.5,3.2078]
[1758894791647,0.436,3978.0,3976.9,0.45227]
[1758894791648,0.436,3977.9,3977.1,3.2078]
[1758894791834,3.2078,3978.3,3977.5,3.2078]
[1758894792144,0.45218,3977.8,3976.7,3.2078]
[1758894792344,0.436,3977.7,3976.7,3.2078]
[1758894792536,0.435,3977.6,3976.7,3.2078]
[1758894792736,3.2078,3977.9,3976.7,3.2078]
[1758894792737,0.45221,3977.5,3976.7,3.2078]
[1758894793041,3.2078,3977.9,3976.7,3.2078]
[1758894793233,0.435,3977.8,3976.7,3.2078]
[1758894793436,0.45223,3977.4,3976.7,3.2078]
[1758894793638,3.2078,3977.9,3976.7,3.2078]
[1758894794050,0.4522,3977.6,3976.8,3.66008]
[1758894794341,3.2078,3978.3,3976.4,3.2078]
[1758894794342,3.2078,3977.3,3976.4,3.2078]
[1758894794546,3.2078,3976.8,3975.9,3.2078]
[1758894794849,0.433,3976.7,3975.9,3.2078]
[1758894795239,3.2078,3976.8,3975.9,3.2078]
[1758894795240,3.2078,3976.8,3976.0,0.70535027]
[1758894795439,3.2078,3976.8,3975.9,3.2078]
[1758894795440,0.432,3976.7,3976.1,0.70535027]
[1758894795641,0.45232,3976.6,3975.9,3.2078]
[1758894795944,0.45233,3976.5,3975.9,3.2078]
[1758894796246,0.45237,3976.2,3976.0,0.70675956]
[1758894796542,1.13065,3977.1,3976.0,0.70675956]
[1758894796543,2.23173742,3982.8,3979.5,3.2078]
[1758894796746,3.2078,3986.6,3983.6,0.45152]
[1758894797047,0.47,3985.7,3985.1,0.45134]
[1758894797244,40.8,3986.5,3985.7,0.45127]
[1758894797447,0.47,3986.4,3985.8,0.70523018]
[1758894797749,0.47,3986.4,3985.9,1.02116263]
[1758894797944,39.233,3987.3,3986.0,1.02116263]
[1758894798248,41.271,3987.2,3986.9,3.2078]
[1758894798442,40.8,3987.2,3986.5,3.2078]
[1758894798645,0.471,3987.1,3986.5,3.2078]
[1758894798943,40.8,3987.2,3986.9,3.2078]
[1758894799143,40.8,3987.2,3987.1,0.45114]
[1758894799353,40.8,3987.2,3987.1,0.38927742]
[1758894799544,46.269,3987.2,3987.1,0.38927742]
[1758894799746,56.349,3987.2,3985.8,3.2078]
[1758894799944,3.2078,3987.1,3985.8,3.2078]
[1758894800142,0.1754,3987.1,3986.9,0.45115]
[1758894800346,3.2078,3987.5,3984.6,11.28557]
[1758894800347,0.468,3987.5,3987.0,3.2078]
[1758894800546,0.468,3987.5,3986.6,3.2078]
[1758894800843,40.8,3987.4,3987.0,3.2078]
[1758894801039,0.468,3987.3,3987.0,3.2078]
[1758894801344,0.468,3987.3,3986.0,3.2078]
[1758894801549,3.2078,3987.0,3986.0,3.2078]
[1758894801742,0.467,3986.9,3986.0,3.2078]
[1758894801941,0.91816,3986.9,3986.0,3.2078]
[1758894802144,7.95,3986.9,3986.0,3.2078]
[1758894802349,0.467,3986.8,3986.0,3.2078]
[1758894802544,0.466,3986.7,3985.6,3.2078]
[1758894802751,0.4512,3986.5,3985.6,3.2078]
[1758894803049,3.2078,3986.2,3985.2,3.2078]
[1758894803248,7.8478,3986.2,3985.2,3.2078]
[1758894803755,3.2078,3985.6,3984.7,3.2078]
[1758894804047,40.10331,3985.5,3984.7,3.2078]
[1758894804250,0.464,3985.4,3984.7,3.2078]
[1758894804447,0.464,3985.3,3984.7,3.2078]
[1758894804647,0.464,3985.3,3982.7,0.465]
[1758894804648,4.80533,3985.3,3984.3,3.2078]
[1758894804849,0.45135,3985.1,3984.3,3.2078]
[1758894805058,6.52,3985.1,3984.3,3.2078]
[1758894805254,0.45137,3984.9,3984.3,3.2078]
[1758894805548,0.45142,3984.5,3984.3,3.2078]
[1758894805751,8.46142,3984.5,3984.3,3.2078]
[1758894805946,0.462,3984.4,3984.3,3.2078]
[1758894806148,6.672,3984.4,3984.3,3.2078]
[1758894806448,0.45142,3984.5,3984.3,3.2078]
[1758894806643,0.461,3984.4,3984.3,3.2078]
[1758894806849,0.91242,3984.4,3984.3,3.2078]
[1758894807162,0.45149,3983.9,3983.7,3.2078]
[1758894807356,1.04,3983.9,3983.7,3.2078]
[1758894807552,0.46,3983.8,3983.7,3.2078]
[1758894807752,5.0,3983.8,3983.7,3.2078]
[1758894808054,0.459,3983.8,3983.7,3.2078]
[1758894808357,5.459,3983.8,3983.7,3.2078]
[1758894808560,5.0,3983.8,3983.7,3.2078]
[1758894808753,5.91049,3983.8,3983.7,3.2078]
[1758894808947,5.45149,3983.8,3983.7,3.2078]
[1758894809149,15.91949,3983.8,3983.7,3.2078]
[1758894809362,0.458,3983.8,3983.7,3.2078]
[1758894809753,41.25143,3984.4,3983.7,3.2078]
[1758894809955,0.90844,3984.3,3983.7,3.2078]
[1758894810264,0.45148,3984.0,3983.7,3.2078]
[1758894810453,3.2078,3984.7,3983.7,3.2078]
[1758894810657,3.2078,3984.7,3982.5,0.456]
[1758894810658,0.45142,3984.5,3984.1,3.2078]
[1758894810856,0.45149,3983.9,3983.7,3.2078]
[1758894811161,0.455,3983.8,3983.7,3.2078]
[1758894811860,0.455,3983.8,3981.0,1.12953]
[1758894811861,0.45155,3983.3,3982.5,3.2078]
[1758894812049,0.454,3983.2,3982.5,3.2078]
[1758894812254,0.454,3983.1,3982.5,3.2078]
[1758894812450,0.454,3983.1,3981.6,1.12935]
[1758894812451,41.254,3983.0,3982.9,3.2078]
[1758894812751,0.453,3983.0,3982.9,3.2078]
[1758894813460,40.8,3983.4,3982.9,3.2078]
[1758894813657,40.8,3983.4,3983.3,3.2078]
[1758894813854,41.252,3983.4,3983.3,3.2078]
[1758894814249,40.8,3983.4,3983.3,3.2078]
[1758894814458,41.251,3983.4,3983.3,3.2078]
[1758894814757,39.174,3983.5,3983.3,3.2078]
[1758894814949,0.45,3983.4,3983.3,3.2078]
[1758894815152,0.45,3983.4,3980.8,0.63639663]
[1758894815153,0.45,3983.4,3982.8,3.2078]
[1758894815558,39.174,3983.5,3983.3,3.2078]
[1758894815757,0.449,3983.4,3983.3,3.2078]
[1758894816159,0.45155,3983.3,3982.9,3.2078]
[1758894816353,0.45158,3983.1,3982.9,3.2078]
[1758894816549,0.448,3983.0,3982.9,3.1578]
[1758894816755,0.4516,3982.9,3982.5,3.2078]
[1758894816954,0.448,3983.0,3982.5,3.2078]
[1758894816955,0.45161,3982.8,3982.5,3.2078]
[1758894817157,0.45162,3982.7,3982.5,3.2078]
[1758894817358,0.448,3982.6,3982.5,3.2078]
[1758894817562,0.45167,3982.2,3982.1,3.2078]
[1758894817858,0.89867,3982.2,3982.1,3.2078]
[1758894818255,0.446,3982.2,3982.1,3.2078]
[1758894818660,0.45161,3982.8,3982.1,3.2078]
[1758894818855,0.45159,3983.0,3982.5,3.2078]
[1758894819064,0.45162,3982.7,3982.5,3.2078]
[1758894819257,0.45167,3982.2,3982.1,3.2078]
[1758894819453,0.89667,3982.2,3982.1,3.2078]
[1758894819859,0.444,3982.2,3982.1,3.2078]
[1758894820565,0.45165,3982.5,3982.3,1.8091]
[1758894820861,1.2007,3982.2,3980.7,3.8992]
[1758894821062,0.45171,3981.9,3981.3,3.2078]
[1758894821257,0.45174,3981.6,3981.5,1.8091]
[1758894821456,0.4518,3981.2,3981.0,1.8091]
[1758894821660,1.2007,3982.3,3981.0,1.8091]
[1758894821661,0.443,3982.7,3981.6,0.6914]
[1758894821961,0.443,3982.7,3981.9,3.2078]
[1758894822156,0.45167,3982.3,3981.6,0.6914]
[1758894822360,1.2007,3983.0,3981.6,0.6914]
[1758894822361,0.444,3982.2,3982.1,1.8091]
[1758894822555,0.444,3982.2,3981.6,0.6914]
[1758894822761,0.444,3982.2,3981.7,1.8091]
[1758894822762,0.444,3982.1,3981.7,1.8091]
[1758894822966,0.45171,3981.9,3981.1,1.8091]
[1758894823163,4.2,3981.9,3981.4,3.2078]
[1758894823463,0.45182,3981.0,3980.4,5.0169]
[1758894823654,3.2078,3981.5,3980.5,1.8091]
[1758894823858,0.45186,3980.6,3980.4,3.2078]
[1758894824161,0.45192,3980.1,3979.9,3.2078]
[1758894824365,0.442,3980.0,3979.9,3.2078]
[1758894824961,7.341,3980.0,3979.4,3.2078]
[1758894825270,0.442,3979.9,3979.4,3.2078]
[1758894825464,40.8,3979.8,3979.5,1.8091]
[1758894825659,0.45196,3979.7,3979.5,1.8091]
[1758894825867,0.45198,3979.5,3979.4,3.2078]
[1758894826068,0.89298,3979.5,3979.4,3.2078]
[1758894826264,0.45201,3979.3,3978.9,3.8992]
[1758894826468,0.45202,3979.2,3979.0,2.53866762]
[1758894826673,0.441,3979.1,3979.0,1.8091]
[1758894826858,0.45204,3979.0,3978.9,3.2078]
[1758894827166,0.89303,3979.1,3978.9,3.2078]
[1758894827361,3.2078,3979.5,3978.9,3.2078]
[1758894827669,0.45203,3979.1,3978.9,3.2078]
[1758894827969,3.2078,3979.5,3978.9,3.2078]
[1758894828272,17.6978,3979.5,3978.9,3.2078]
[1758894828473,12.6978,3979.5,3978.9,3.2078]
[1758894828663,1.7291,3981.2,3979.4,3.2078]
[1758894828868,2.4891,3981.2,3980.7,3.2078]
[1758894829164,1.7291,3980.9,3980.7,3.2078]
[1758894829364,0.7257,3981.0,3980.7,3.2078]
[1758894829365,2.1701,3980.8,3980.7,3.2078]
[1758894829958,1.7291,3980.6,3980.3,3.2078]
[1758894830262,1.7291,3980.4,3980.3,3.2078]
[1758894830462,12.3191,3980.4,3980.3,3.2078]
[1758894830667,17.3191,3980.4,3980.3,3.2078]
[1758894831165,1.7291,3979.9,3979.8,3.2078]
[1758894831371,2.1681,3979.9,3979.8,3.93176659]
[1758894832265,1.7291,3979.9,3979.8,3.2078]
[1758894832566,2.1661,3979.9,3979.8,3.2078]
[1758894833165,2.1661,3979.9,3979.8,3.92858983]
[1758894833166,1.7291,3979.9,3979.8,3.92858983]
[1758894833362,0.7257,3980.0,3979.8,9.38052983]
[1758894833561,40.9191,3980.6,3979.8,9.38052983]
[1758894833562,40.9191,3980.6,3980.0,0.45192]
[1758894833865,39.19,3980.6,3980.5,3.2078]
[1758894834066,39.19,3980.6,3980.5,3.92858983]
[1758894834067,41.3551,3980.6,3980.5,3.92858983]
[1758894834369,41.3551,3980.6,3980.5,3.2078]
[1758894834863,40.9191,3980.6,3980.5,3.92709544]
[1758894835064,41.3541,3980.6,3980.5,3.2078]
[1758894835374,41.3531,3980.6,3980.5,3.2078]
[1758894836368,40.9191,3980.6,3980.5,3.2078]
[1758894836664,40.9191,3980.6,3979.7,0.63639663]
[1758894836665,41.3521,3980.6,3979.7,0.63639663]
[1758894836966,1.7291,3980.4,3979.8,0.72020925]
[1758894837171,1.7291,3980.0,3979.9,0.72020925]
[1758894837471,0.432,3980.0,3979.9,3.92800925]
[1758894837659,40.9191,3980.6,3979.9,3.92800925]
[1758894837965,40.9191,3980.6,3980.0,0.72020925]
[1758894837966,2.18101,3980.1,3980.0,0.72020925]
[1758894838363,2.61201,3980.1,3980.0,0.72020925]
[1758894839570,1.7291,3979.4,3979.3,3.2078]
[1758894839768,1.7291,3979.4,3979.3,3.9210706]
[1758894840364,2.4548,3980.0,3979.3,8.9210706]
[1758894840560,2.4548,3980.0,3979.4,0.7132706]
[1758894840561,1.7291,3979.7,3979.4,0.7132706]
[1758894840763,0.7257,3980.0,3979.5,0.7132706]
[1758894840971,0.7257,3980.0,3979.6,0.7132706]
[1758894840972,1.7291,3979.9,3979.6,0.7132706]
[1758894841267,1.7291,3979.9,3979.8,3.2078]
[1758894841470,2.1561,3979.9,3979.8,4.55746723]
[1758894841667,2.60804,3979.9,3979.8,3.9210706]
[1758894841869,2.1561,3979.9,3979.8,3.9210706]
[1758894842267,1.7291,3979.9,3979.8,3.9210706]
[1758894842565,2.1551,3979.9,3979.8,3.9210706]
[1758894842968,1.7291,3979.9,3979.8,3.9210706]
[1758894843162,0.7257,3980.0,3979.9,0.45194]
[1758894843364,1.1507,3980.0,3979.9,0.7132706]
[1758894844266,0.7257,3980.0,3979.9,0.7132706]
[1758894844468,1.1497,3980.0,3979.9,0.7132706]
[1758894844666,2.8788,3980.0,3979.9,0.7132706]
[1758894845273,2.4548,3980.0,3979.9,0.7132706]
[1758894845774,2.8778,3980.0,3979.9,0.7132706]
[1758894846268,2.8778,3980.0,3979.9,1.3695786]
[1758894846269,2.4548,3980.0,3979.9,1.3695786]
[1758894846672,2.8768,3980.0,3979.9,0.7132706]
[1758894846860,2.8758,3980.0,3979.9,0.7132706]
[1758894847065,2.8758,3980.0,3979.9,1.1652006]
[1758894847669,1.6961,3980.8,3980.0,1.12982]
[1758894847864,2.4218,3981.0,3980.9,3.65962]
[1758894848064,2.4218,3981.0,3980.9,4.3728906]
[1758894848265,2.4218,3981.6,3980.9,10.9270089]
[1758894848570,40.8951,3982.2,3981.5,3.2078]
[1758894848775,40.8951,3982.2,3982.1,3.2078]
[1758894848968,41.3151,3982.2,3982.1,3.9210706]
[1758894849267,40.8951,3982.2,3982.1,0.7132706]
[1758894849474,41.3141,3982.2,3982.1,0.7132706]
[1758894850462,40.8951,3982.2,3982.1,0.7132706]
[1758894850663,41.3131,3982.2,3982.1,0.7132706]
[1758894850860,40.8951,3982.2,3982.1,0.7132706]
[1758894851370,41.3131,3982.2,3982.1,0.7132706]
[1758894851567,40.8951,3982.2,3982.1,0.7132706]
[1758894851877,41.3121,3982.2,3982.1,0.7132706]
[1758894852067,40.8951,3982.2,3982.1,0.7132706]
[1758894852274,40.8951,3982.2,3982.1,3.9210706]
[1758894852275,41.3111,3982.2,3982.1,3.9210706]
[1758894852469,40.8951,3982.2,3982.1,3.9210706]
[1758894852769,41.3111,3982.2,3982.1,3.9210706]
[1758894852973,41.3111,3982.2,3982.1,4.3727506]
[1758894853374,41.3111,3982.2,3982.1,3.9210706]
[1758894853668,41.3101,3982.2,3982.1,3.9210706]
[1758894855779,40.8951,3982.2,3982.1,3.9210706]
[1758894855973,41.3071,3982.2,3982.1,3.9210706]
[1758894856368,40.8951,3982.2,3982.1,3.9210706]
[1758894856569,41.3071,3982.2,3982.1,3.91578864]
[1758894857081,40.8951,3982.2,3982.1,3.91578864]
[1758894857279,41.3061,3982.2,3982.1,3.91578864]
[1758894857480,41.75777,3982.2,3982.1,0.70798864]
[1758894857774,41.3061,3982.2,3982.1,0.70798864]
[1758894858181,40.8951,3982.2,3982.1,0.70798864]
[1758894858482,41.3051,3982.2,3982.1,3.2078]
[1758894858677,41.3051,3982.2,3982.1,3.91363474]
[1758894858982,40.8951,3982.2,3982.1,3.91363474]
[1758894859181,41.3051,3982.2,3982.1,5.02129705]
[1758894859376,41.3051,3982.2,3982.1,4.36531474]
[1758894859584,40.8951,3982.2,3982.1,9.36531474]
[1758894859782,39.607,3982.2,3982.1,10.02129705]
[1758894859981,41.3031,3982.2,3982.1,4.36531474]
[1758894860176,41.3031,3982.2,3982.1,9.36531474]
[1758894860375,41.3031,3982.2,3982.1,10.02129705]
[1758894861186,40.8951,3982.2,3982.1,9.36531474]
[1758894861377,39.607,3982.2,3982.1,9.36531474]
[1758894861684,39.606,3982.2,3982.1,9.36531474]
[1758894861980,1.6961,3982.7,3982.1,9.36531474]
[1758894861981,1.6961,3982.7,3982.6,0.45163]
[1758894862289,2.1031,3982.7,3982.6,3.91363474]
[1758894862577,2.1031,3982.7,3982.6,4.36526474]
[1758894862787,1.6961,3982.7,3982.6,3.91363474]
[1758894862985,2.55272,3982.7,3982.6,3.91363474]
[1758894863284,2.1011,3982.7,3982.6,3.91363474]
[1758894863983,1.6961,3982.7,3982.6,3.91363474]
[1758894864181,2.1001,3982.7,3982.6,3.91363474]
[1758894864481,2.55172,3982.7,3982.6,3.91363474]
[1758894864683,8.84172,3982.7,3982.6,3.91363474]
[1758894865580,8.43772,3982.7,3982.6,3.86363474]
[1758894865781,2.9291,3982.7,3982.6,3.86363474]
[1758894866085,8.23772,3982.7,3982.6,3.86363474]
[1758894866276,2.0981,3982.7,3982.6,3.86363474]
[1758894866477,2.54972,3982.7,3982.6,3.86363474]
[1758894867188,1.6961,3982.7,3982.6,3.86363474]
[1758894867484,2.0971,3982.7,3982.6,3.86363474]
[1758894868182,2.54872,3982.7,3982.6,3.86363474]
[1758894868480,2.54872,3982.7,3982.6,3.1578]
[1758894868681,2.0961,3982.7,3982.6,3.1578]
[1758894868879,2.14772,3982.7,3982.6,3.1578]
[1758894869286,2.0951,3982.7,3982.6,3.1578]
[1758894869488,2.54672,3982.7,3982.6,3.1578]
[1758894870885,0.7153,3982.0,3981.8,3.2078]
[1758894871087,1.6961,3981.9,3981.8,3.2078]
[1758894871280,2.0931,3981.9,3981.8,3.9096391]
[1758894871785,2.54481,3981.9,3981.8,3.9096391]
[1758894871984,2.14781,3981.9,3981.8,3.9096391]
[1758894872183,6.90381,3981.9,3981.8,0.7018391]
[1758894872381,6.90381,3981.9,3981.4,3.2078]
[1758894872382,0.45175,3981.5,3981.4,3.2078]
[1758894872587,3.25915,3981.5,3981.4,3.2078]
[1758894872982,48.66315,3981.5,3981.4,3.2078]